fUST/lending_fUST_20250616
["ID","MTS","AMOUNT","RATE_DAILY","PERIOD"]
[366130183,1750078237218,-460.0,0.0002,4]
[366130185,1750078237228,-460.0,0.0002,4]
[366130187,1750078237238,-460.0,0.0002,4]
[366130189,1750078237247,-460.0,0.0002,2]
[366130191,1750078237258,-460.0,0.0002,4]
[366130193,1750078237268,-566.20253903,0.0002,4]
[366130195,1750078237277,-633.08,0.0002,4]
[366130197,1750078237287,-691.48,0.0002,4]
[366130199,1750078237297,-460.0,0.0002,4]
[366130201,1750078237310,-879.77,0.0002,4]
[366130203,1750078237320,-460.0,0.0002,4]
[366130205,1750078237329,-460.0,0.0002,4]
[366130207,1750078237339,-460.0,0.0002,4]
[366130209,1750078237349,-2486.67,0.0002,4]
[366130212,1750078237360,-460.0,0.0002,4]
[366130214,1750078237370,-460.0,0.0002,4]
[366130216,1750078237381,-460.0,0.0002,4]
[366130217,1750078237390,-182.02974989,0.0002,4]
[366130219,1750078237400,-460.0,0.0002,4]
[366130222,1750078237412,-967.13,0.0002,4]
[366130224,1750078237421,-460.0,0.0002,4]
[366130226,1750078237431,-683.53,0.0002,4]
[366130228,1750078237441,-460.0,0.0002,4]
[366130230,1750078237451,-620.94,0.0002,4]
[366130231,1750078237460,-460.0,0.0002,4]
[366130233,1750078237470,-460.0,0.0002,4]
[366130235,1750078237479,-1000.0,0.00020033,2]
[366130236,1750078237489,-1000.0,0.00020083,2]
[366130238,1750078237499,-505.3571264,0.00020083,2]
[366130240,1750078237508,-1302.83122838,0.000201,2]
[366130241,1750078237519,-972.03557428,0.000201,2]
[366130243,1750078237528,-160.0,0.00020104,2]
[366130245,1750078237538,-213.36025772,0.00020104,2]
[366130247,1750078237548,-229.90125484,0.00020104,2]
[366130249,1750078237557,-845.47092152,0.00020104,2]
[366130250,1750078237567,-424.54874296,0.00020104,2]
[366130252,1750078237576,-160.0,0.00020104,2]
[366130254,1750078237586,-835.67987521,0.00020105,2]
[366130255,1750078237595,-12537.89035583,0.00020105,2]
[366130257,1750078237605,-972.03557417,0.00020107,2]
[366130259,1750078237616,-500.0,0.00020109,4]
[366130261,1750078237627,-500.0,0.00020109,4]
[366130262,1750078237636,-160.0,0.0002011,2]
[366130264,1750078237646,-500.0,0.0002011,4]
[366130266,1750078237656,-500.0,0.0002011,4]
[366130268,1750078237666,-500.0,0.0002011,4]
[366130270,1750078237677,-312.56,0.0002011,4]
[366130271,1750078237686,-816.2,0.0002011,4]
[366130273,1750078237695,-460.0,0.0002011,4]
[366130275,1750078237705,-222.24507458,0.00020111,4]
[366130277,1750078237715,-460.0,0.00020111,4]
[366130279,1750078237726,-460.0,0.00020111,4]
[366130281,1750078237735,-460.0,0.00020111,4]
[366130282,1750078237746,-460.0,0.00020111,4]
[366130284,1750078237756,-408.2402574,0.00020111,4]
[366130286,1750078237766,-460.0,0.00020111,4]
[366130288,1750078237776,-440.0,0.00020111,4]
[366130289,1750078237786,-430.0,0.00020111,4]
[366130291,1750078237796,-451.40577065,0.00020111,4]
[366130293,1750078237806,-1000.0,0.00020124,2]
[366130295,1750078237817,-501.23081117,0.00020137,2]
[366130296,1750078237827,-397.69405856,0.00020137,2]
[366130298,1750078237837,-160.36119306,0.00020163,2]
[366130300,1750078237847,-500.0,0.00020268,2]
[366130302,1750078237858,-460.0,0.00020273,4]
[366130303,1750078237868,-460.0,0.00020273,4]
[366130305,1750078237878,-460.0,0.00020273,2]
[366130307,1750078237889,-460.0,0.00020273,4]
[366130309,1750078237898,-633.08,0.00020273,4]
[366130310,1750078237908,-691.48,0.00020273,4]
[366130312,1750078237919,-460.0,0.00020273,4]
[366130314,1750078237929,-879.77,0.00020273,4]
[366130316,1750078237939,-460.0,0.00020273,4]
[366130317,1750078237949,-460.0,0.00020273,4]
[366130319,1750078237959,-460.0,0.00020273,4]
[366130321,1750078237968,-460.0,0.00020273,4]
[366130323,1750078237978,-2486.67,0.00020273,4]
[366130324,1750078237986,-504.92458829,0.00020273,4]
[366130326,1750078237997,-460.0,0.00020273,4]
[366130328,1750078238007,-460.0,0.00020273,4]
[366130330,1750078238016,-460.0,0.00020273,4]
[366130331,1750078238027,-460.0,0.00020273,4]
[366130333,1750078238038,-967.13,0.00020273,4]
[366130335,1750078238047,-460.0,0.00020273,4]
[366130337,1750078238058,-683.53,0.00020273,4]
[366130339,1750078238067,-460.0,0.00020273,4]
[366130341,1750078238077,-620.94,0.00020273,4]
[366130343,1750078238086,-460.0,0.00020273,4]
[366130344,1750078238096,-460.0,0.00020273,4]
[366130346,1750078238106,-972.03557417,0.00020314,3]
[366130348,1750078238116,-816.2,0.00020384,4]
[366130350,1750078238126,-460.0,0.00020384,4]
[366130351,1750078238136,-430.0,0.00020385,4]
[366130353,1750078238146,-460.0,0.00020385,4]
[366130355,1750078238155,-460.0,0.00020385,4]
[366130357,1750078238165,-176.78106194,0.00020489,2]
[366130358,1750078238175,-164.688,0.00020511,2]
[366130360,1750078238184,-972.03557417,0.00020521,3]
[366130363,1750078238194,-768.2,0.00020538,3]
[366130365,1750078238204,-500.0,0.00020547,2]
[366130368,1750078238215,-460.0,0.00020547,4]
[366130370,1750078238225,-200.16757038,0.00020547,4]
[366130373,1750078238235,-460.0,0.00020547,2]
[366130374,1750078238246,-364.6697133,0.00020547,4]
[366130376,1750078238256,-633.08,0.00020547,4]
[366130378,1750078238267,-691.48,0.00020547,4]
[366130380,1750078238277,-460.0,0.00020547,4]
[366130382,1750078238287,-879.77,0.00020547,4]
[366130383,1750078238297,-460.0,0.00020547,4]
[366130385,1750078238310,-460.0,0.00020547,4]
[366130387,1750078238320,-460.0,0.00020547,4]
[366130389,1750078238330,-460.0,0.00020547,4]
[366130390,1750078238339,-2486.67,0.00020547,4]
[366130392,1750078238350,-460.0,0.00020547,4]
[366130394,1750078238360,-460.0,0.00020547,4]
[366130396,1750078238370,-460.0,0.00020547,4]
[366130398,1750078238382,-460.0,0.00020547,4]
[366130400,1750078238392,-967.13,0.00020547,4]
[366130402,1750078238401,-460.0,0.00020547,4]
[366130404,1750078238411,-683.53,0.00020547,4]
[366130405,1750078238421,-460.0,0.00020547,4]
[366130407,1750078238431,-620.94,0.00020547,4]
[366130409,1750078238441,-460.0,0.00020547,4]
[366130411,1750078238451,-460.0,0.00020547,4]
[366130425,1750078238461,-159.769475,0.00020548,2]
[366130427,1750078238619,-1500.0,0.00020581,2]
[366130429,1750078238630,-816.2,0.00020658,4]
[366130431,1750078238640,-460.0,0.00020658,4]
[366130432,1750078238650,-430.0,0.00020659,4]
[366130434,1750078238659,-540.0,0.00020659,4]
[366130436,1750078238669,-1300.93,0.00020719,2]
[366130438,1750078238679,-972.03557417,0.00020728,3]
[366130440,1750078238690,-255.92309888,0.00020821,4]
[366130441,1750078238699,-460.0,0.00020821,2]
[366130443,1750078238709,-633.08,0.00020821,4]
[366130445,1750078238719,-691.48,0.00020821,4]
[366130447,1750078238730,-460.0,0.00020821,4]
[366130449,1750078238740,-879.77,0.00020821,4]
[366130451,1750078238749,-460.0,0.00020821,4]
[366130452,1750078238759,-460.0,0.00020821,4]
[366130454,1750078238769,-460.0,0.00020821,4]
[366130456,1750078238779,-460.0,0.00020821,4]
[366130458,1750078238788,-2486.67,0.00020821,4]
[366130460,1750078238799,-460.0,0.00020821,4]
[366130462,1750078238808,-460.0,0.00020821,4]
[366130464,1750078238818,-298.34223091,0.00020821,4]
[366130473,1750078238916,-581.18,0.00019726,4]
[366130475,1750078238926,-161.65776909,0.00020821,4]
[366130477,1750078238936,-25.90802288,0.00020821,4]
[366130479,1750078238948,-434.09197712,0.00020821,4]
[366130480,1750078238957,-967.13,0.00020821,4]
[366130482,1750078238967,-460.0,0.00020821,4]
[366130484,1750078238977,-683.53,0.00020821,4]
[366130486,1750078238987,-460.0,0.00020821,4]
[366130488,1750078238997,-620.94,0.00020821,4]
[366130490,1750078239006,-460.0,0.00020821,4]
[366130492,1750078239016,-460.0,0.00020821,4]
[366130493,1750078239026,-816.2,0.00020932,4]
[366130496,1750078239041,-460.0,0.00020932,4]
[366130498,1750078239051,-972.03557417,0.00020934,4]
[366130499,1750078239061,-3589.81419784,0.0002095,2]
[366130539,1750078239517,-500.0,0.00018375,2]
[366130540,1750078239528,-500.0,0.00018375,2]
[366130542,1750078239539,-500.0,0.00018375,2]
[366130544,1750078239549,-500.0,0.00018375,2]
[366130546,1750078239559,-500.0,0.00018375,2]
[366130548,1750078239571,-500.0,0.00018375,2]
[366130550,1750078239581,-500.0,0.00018375,2]
[366130552,1750078239591,-500.0,0.00018375,2]
[366130554,1750078239601,-500.0,0.00018375,2]
[366130556,1750078239612,-500.0,0.00018375,2]
[366130557,1750078239621,-500.0,0.00018375,2]
[366130559,1750078239632,-500.0,0.00018375,2]
[366130561,1750078239642,-500.0,0.00018375,2]
[366130563,1750078239652,-518.59373103,0.00018375,2]
[366130565,1750078239662,-265.237427,0.00019178,2]
[366130567,1750078239674,-460.0,0.00019178,2]
[366130569,1750078239685,-544.74875674,0.00019452,4]
[366130571,1750078239695,-581.18,0.0002,4]
[366130573,1750078239704,-581.18,0.00020273,4]
[366130575,1750078239715,-581.18,0.00020547,4]
[366130577,1750078239724,-581.18,0.00020821,4]
[366130578,1750078239734,-1410.18580216,0.0002095,2]
[366130580,1750078239744,-207.4,0.0002095,2]
[366130582,1750078239754,-1688.0,0.0002095,2]
[366130584,1750078239764,-884.586432,0.00021005,2]
[366130586,1750078239773,-460.0,0.00021095,2]
[366130588,1750078239783,-633.08,0.00021095,4]
[366130590,1750078239793,-691.48,0.00021095,4]
[366130591,1750078239803,-460.0,0.00021095,4]
[366130592,1750078239813,-879.77,0.00021095,4]
[366130593,1750078239822,-460.0,0.00021095,4]
[366130594,1750078239832,-460.0,0.00021095,4]
[366130595,1750078239842,-460.0,0.00021095,4]
[366130596,1750078239852,-460.0,0.00021095,4]
[366130597,1750078239862,-2486.67,0.00021095,4]
[366130598,1750078239872,-460.0,0.00021095,4]
[366130599,1750078239882,-460.0,0.00021095,4]
[366130600,1750078239895,-460.0,0.00021095,4]
[366130601,1750078239905,-460.0,0.00021095,4]
[366130602,1750078239917,-967.13,0.00021095,4]
[366130603,1750078239926,-460.0,0.00021095,4]
[366130604,1750078239936,-683.53,0.00021095,4]
[366130605,1750078239946,-460.0,0.00021095,4]
[366130606,1750078239955,-620.94,0.00021095,4]
[366130607,1750078239966,-460.0,0.00021095,4]
[366130608,1750078239976,-460.0,0.00021095,4]
[366130609,1750078239986,-581.18,0.00021095,4]
[366130610,1750078239998,-1302.83122838,0.00021121,2]
[366130611,1750078240007,-972.03557417,0.00021141,4]
[366130612,1750078240018,-460.0,0.00021206,4]
[366130613,1750078240028,-972.03557417,0.00021348,5]
[366130614,1750078240038,-460.0,0.00021369,2]
[366130615,1750078240047,-633.08,0.00021369,4]
[366130616,1750078240059,-691.48,0.00021369,4]
[366130617,1750078240069,-460.0,0.00021369,4]
[366130618,1750078240079,-879.77,0.00021369,4]
[366130619,1750078240088,-460.0,0.00021369,4]
[366130620,1750078240098,-460.0,0.00021369,4]
[366130621,1750078240108,-460.0,0.00021369,4]
[366130623,1750078240118,-460.0,0.00021369,4]
[366130624,1750078240128,-2486.67,0.00021369,4]
[366130625,1750078240138,-460.0,0.00021369,4]
[366130626,1750078240147,-460.0,0.00021369,4]
[366130627,1750078240157,-460.0,0.00021369,4]
[366130628,1750078240167,-460.0,0.00021369,4]
[366130629,1750078240177,-967.13,0.00021369,4]
[366130630,1750078240186,-460.0,0.00021369,4]
[366130631,1750078240196,-683.53,0.00021369,4]
[366130632,1750078240206,-460.0,0.00021369,4]
[366130633,1750078240216,-620.94,0.00021369,4]
[366130634,1750078240226,-508.86157571,0.00021369,4]
[366130635,1750078240236,-460.0,0.00021369,4]
[366130637,1750078240247,-581.18,0.00021369,4]
[366130638,1750078240256,-460.0,0.0002148,4]
[366130639,1750078240267,-5000.0,0.00021498,2]
[366130640,1750078240277,-500.0,0.00021555,2]
[366130641,1750078240287,-972.03557417,0.00021555,5]
[366130642,1750078240297,-460.0,0.00021643,2]
[366130643,1750078240311,-633.08,0.00021643,4]
[366130644,1750078240321,-691.48,0.00021643,4]
[366130645,1750078240332,-460.0,0.00021643,4]
[366130646,1750078240344,-879.77,0.00021643,4]
[366130647,1750078240356,-460.0,0.00021643,4]
[366130648,1750078240365,-460.0,0.00021643,4]
[366130649,1750078240376,-471.34030966,0.00021643,4]
[366130650,1750078240387,-460.0,0.00021643,4]
[366130651,1750078240397,-2486.67,0.00021643,4]
[366130652,1750078240407,-460.0,0.00021643,4]
[366130653,1750078240416,-460.0,0.00021643,4]
[366130654,1750078240426,-460.0,0.00021643,4]
[366130655,1750078240436,-460.0,0.00021643,4]
[366130656,1750078240445,-967.13,0.00021643,4]
[366130657,1750078240455,-460.0,0.00021643,4]
[366130658,1750078240465,-683.53,0.00021643,4]
[366130659,1750078240475,-460.0,0.00021643,4]
[366130660,1750078240485,-620.94,0.00021643,4]
[366130661,1750078240495,-460.0,0.00021643,4]
[366130662,1750078240505,-581.18,0.00021643,4]
[366130663,1750078240515,-500.0,0.00021671,2]
[366130664,1750078240525,-2601.85,0.00021705,2]
[366130665,1750078240535,-460.0,0.00021754,4]
[366130666,1750078240545,-972.03557417,0.00021762,5]
[366130667,1750078240554,-216.0,0.00021786,2]
[366130668,1750078240564,-300.0,0.00021789,2]
[366130669,1750078240574,-587.0,0.00021789,2]
[366130670,1750078240583,-310.23252343,0.00021879,2]
[366130671,1750078240676,-460.0,0.00021917,2]
[366130672,1750078240687,-633.08,0.00021917,4]
[366130673,1750078240696,-691.48,0.00021917,4]
[366130674,1750078240705,-460.0,0.00021917,4]
[366130675,1750078240715,-879.77,0.00021917,4]
[366130676,1750078240724,-460.0,0.00021917,4]
[366130677,1750078240734,-460.0,0.00021917,4]
[366130678,1750078240743,-460.0,0.00021917,4]
[366130679,1750078240753,-2486.67,0.00021917,4]
[366130680,1750078240762,-460.0,0.00021917,4]
[366130681,1750078240772,-460.0,0.00021917,4]
[366130682,1750078240781,-460.0,0.00021917,4]
[366130683,1750078240790,-500.0,0.00021917,2]
[366130684,1750078240799,-460.0,0.00021917,4]
[366130685,1750078240809,-967.13,0.00021917,4]
[366130686,1750078240818,-460.0,0.00021917,4]
[366130687,1750078240828,-683.53,0.00021917,4]
[366130688,1750078240838,-460.0,0.00021917,4]
[366130689,1750078240848,-620.94,0.00021917,4]
[366130690,1750078240858,-460.0,0.00021917,4]
[366130691,1750078240868,-581.18,0.00021917,4]
[366130692,1750078240878,-500.0,0.00021918,2]
[366130693,1750078240888,-216.0,0.00021919,2]
[366130694,1750078240897,-972.03557417,0.00021969,6]
[366130695,1750078240907,-1037.42909163,0.0002199,2]
[366130696,1750078240916,-216.0,0.00021993,2]
[366130697,1750078240926,-460.0,0.00022028,4]
[366130698,1750078240935,-5000.0,0.00022046,2]
[366130699,1750078240945,-1302.83122838,0.00022143,2]
[366130700,1750078240954,-972.03557417,0.00022176,6]
[366130701,1750078240964,-460.0,0.00022191,2]
[366130702,1750078240973,-633.08,0.00022191,4]
[366130703,1750078240982,-691.48,0.00022191,4]
[366130704,1750078240992,-460.0,0.00022191,4]
[366130705,1750078241001,-879.77,0.00022191,4]
[366130706,1750078241010,-460.0,0.00022191,4]
[366130707,1750078241020,-460.0,0.00022191,4]
[366130708,1750078241029,-460.0,0.00022191,4]
[366130709,1750078241039,-2486.67,0.00022191,4]
[366130710,1750078241048,-573.75895449,0.00022191,4]
[366130711,1750078241058,-460.0,0.00022191,4]
[366130712,1750078241067,-460.0,0.00022191,4]
[366130713,1750078241076,-967.13,0.00022191,4]
[366130714,1750078241086,-460.0,0.00022191,4]
[366130715,1750078241095,-683.53,0.00022191,4]
[366130716,1750078241105,-460.0,0.00022191,4]
[366130717,1750078241114,-620.94,0.00022191,4]
[366130718,1750078241123,-460.0,0.00022191,4]
[366130719,1750078241132,-581.18,0.00022191,4]
[366130720,1750078241141,-964.0,0.00022195,2]
[366130721,1750078241151,-653.0,0.00022195,2]
[366130722,1750078241160,-2160.0,0.00022195,2]
[366130723,1750078241169,-406.0,0.00022195,2]
[366130724,1750078241179,-150.0,0.00022195,2]
[366130725,1750078241188,-197.06690157,0.000222,69]
[366130726,1750078241198,-460.0,0.00022302,4]
[366130727,1750078241212,-215.0738,0.00022319,2]
[366130728,1750078241222,-972.03557417,0.00022383,7]
[366130729,1750078241231,-216.0,0.0002239,2]
[366130730,1750078241241,-460.0,0.00022465,2]
[366130731,1750078241251,-633.08,0.00022465,4]
[366130732,1750078241261,-691.48,0.00022465,4]
[366130733,1750078241271,-460.0,0.00022465,4]
[366130734,1750078241280,-879.77,0.00022465,4]
[366130735,1750078241291,-460.0,0.00022465,4]
[366130736,1750078241301,-460.0,0.00022465,4]
[366130737,1750078241314,-460.0,0.00022465,4]
[366130739,1750078241323,-2486.67,0.00022465,4]
[366130741,1750078241333,-460.0,0.00022465,4]
[366130742,1750078241342,-460.0,0.00022465,4]
[366130743,1750078241353,-967.13,0.00022465,4]
[366130744,1750078241363,-460.0,0.00022465,4]
[366130745,1750078241372,-683.53,0.00022465,4]
[366130746,1750078241386,-460.0,0.00022465,4]
[366130747,1750078241398,-620.94,0.00022465,4]
[366130748,1750078241408,-206.42271185,0.00022465,4]
[366130749,1750078241418,-581.18,0.00022465,4]
[366130750,1750078241429,-1682.2750524,0.00022558,2]
[366130751,1750078241439,-216.0,0.00022572,2]
[366130752,1750078241449,-460.0,0.00022576,4]
[366130753,1750078241459,-972.03557417,0.0002259,7]
[366130754,1750078241470,-5000.0,0.00022594,2]
[366130755,1750078241482,-216.0,0.00022626,2]
[366130756,1750078241492,-216.0,0.00022631,2]
[366130757,1750078241501,-3902.78,0.00022692,2]
[366130758,1750078241512,-176.78106194,0.00022701,2]
[366130759,1750078241523,-460.0,0.00022739,2]
[366130760,1750078241536,-633.08,0.00022739,4]
[366130761,1750078241546,-691.48,0.00022739,4]
[366130762,1750078241560,-460.0,0.00022739,4]
[366130763,1750078241576,-879.77,0.00022739,4]
[366130764,1750078241587,-460.0,0.00022739,4]
[366130765,1750078241599,-460.0,0.00022739,4]
[366130766,1750078241609,-460.0,0.00022739,4]
[366130767,1750078241619,-2486.67,0.00022739,4]
[366130768,1750078241629,-460.0,0.00022739,4]
[366130769,1750078241639,-481.4,0.00022739,4]
[366130770,1750078241649,-967.13,0.00022739,4]
[366130771,1750078241659,-512.31450443,0.00022739,4]
[366130772,1750078241669,-683.53,0.00022739,4]
[366130773,1750078241679,-307.82199391,0.00022739,4]
[366130774,1750078241688,-620.94,0.00022739,4]
[366130775,1750078241698,-581.18,0.00022739,4]
[366130776,1750078241708,-972.03557417,0.00022797,7]
[366130777,1750078241718,-220.65,0.0002285,4]
[366130778,1750078241731,-216.0,0.00022854,2]
[366130779,1750078241743,-162.85516593,0.00022904,2]
[366130780,1750078241753,-216.0,0.00022946,2]
[366130781,1750078241762,-972.03557417,0.00023003,8]
[366130782,1750078241772,-460.0,0.00023013,2]
[366130783,1750078241782,-633.08,0.00023013,4]
[366130784,1750078241792,-691.48,0.00023013,4]
[366130785,1750078241802,-406.01167809,0.00023013,4]
[366130786,1750078241813,-879.77,0.00023013,4]
[366130787,1750078241823,-460.0,0.00023013,4]
[366130788,1750078241833,-460.0,0.00023013,4]
[366130789,1750078241843,-460.0,0.00023013,4]
[366130790,1750078241854,-2486.67,0.00023013,4]
[366130791,1750078241864,-460.0,0.00023013,4]
[366130792,1750078241875,-967.13,0.00023013,4]
[366130793,1750078241886,-683.53,0.00023013,4]
[366130794,1750078241896,-620.94,0.00023013,4]
[366130795,1750078241907,-581.18,0.00023013,4]
[366130796,1750078241917,-600.0,0.0002304,2]
[366130797,1750078241927,-500.0,0.00023063,2]
[366130798,1750078241936,-500.0,0.00023095,2]
[366130799,1750078241947,-5000.0,0.00023142,2]
[366130800,1750078241956,-500.0,0.00023143,2]
[366130801,1750078241966,-1302.83122838,0.00023164,2]
[366130802,1750078241976,-500.0,0.00023189,2]
[366130803,1750078241986,-162.85516593,0.00023205,2]
[366130804,1750078241996,-972.03557417,0.0002321,8]
[366130805,1750078242006,-510.64888868,0.00023264,8]
[366130806,1750078242016,-151.0,0.00023287,7]
[366130807,1750078242026,-460.0,0.00023287,2]
[366130808,1750078242036,-633.08,0.00023287,4]
[366130809,1750078242047,-691.48,0.00023287,4]
[366130810,1750078242057,-879.77,0.00023287,4]
[366130811,1750078242067,-460.0,0.00023287,4]
[366130812,1750078242081,-460.0,0.00023287,4]
[366130813,1750078242091,-397.92,0.00023287,4]
[366130814,1750078242102,-2486.67,0.00023287,4]
[366130815,1750078242113,-460.0,0.00023287,4]
[366130816,1750078242123,-967.13,0.00023287,4]
[366130817,1750078242132,-683.53,0.00023287,4]
[366130818,1750078242142,-620.94,0.00023287,4]
[366130819,1750078242154,-581.18,0.00023287,4]
[366130820,1750078242165,-500.0,0.0002329,2]
[366130821,1750078242175,-549.73,0.000233,2]
[366130822,1750078242184,-151.0,0.000233,7]
[366130823,1750078242194,-500.0,0.00023367,2]
[366130824,1750078242205,-160.0,0.00023384,3]
[366130825,1750078242214,-972.03557417,0.00023417,9]
[366130826,1750078242224,-500.0,0.00023427,2]
[366130827,1750078242235,-216.0,0.00023466,2]
[366130828,1750078242244,-1070.316869,0.00023518,3]
[366130829,1750078242255,-500.0,0.00023523,2]
[366130830,1750078242264,-500.0,0.00023552,2]
[366130831,1750078242275,-460.0,0.00023561,2]
[366130832,1750078242285,-633.08,0.00023561,4]
[366130833,1750078242295,-691.48,0.00023561,4]
[366130834,1750078242307,-879.77,0.00023561,4]
[366130835,1750078242318,-460.0,0.00023561,4]
[366130836,1750078242328,-257.04717125,0.00023561,4]
[366130837,1750078242338,-2486.67,0.00023561,4]
[366130838,1750078242348,-460.0,0.00023561,4]
[366130839,1750078242360,-967.13,0.00023561,4]
[366130840,1750078242370,-683.53,0.00023561,4]
[366130841,1750078242381,-620.94,0.00023561,4]
[366130842,1750078242392,-581.18,0.00023561,4]
[366130843,1750078242403,-500.0,0.00023581,2]
[366130844,1750078242413,-500.0,0.00023597,2]
[366130845,1750078242424,-151.0,0.000236,5]
[366130846,1750078242435,-500.0,0.0002361,2]
[366130847,1750078242445,-972.03557417,0.00023624,9]
[366130848,1750078242455,-500.0,0.00023645,2]
[366130849,1750078242466,-500.0,0.00023648,2]
[366130850,1750078242476,-500.0,0.0002366,2]
[366130851,1750078242486,-500.0,0.00023666,2]
[366130852,1750078242497,-5203.7,0.00023678,2]
[366130853,1750078242507,-216.0,0.00023679,2]
[366130854,1750078242518,-223.0315306,0.00023688,2]
[366130855,1750078242528,-5000.0,0.0002369,2]
[366130856,1750078242539,-500.0,0.0002376,2]
[366130857,1750078242549,-823.0,0.00023766,2]
[366130858,1750078242559,-972.03557417,0.00023831,10]
[366130859,1750078242569,-460.0,0.00023835,2]
[366130860,1750078242580,-633.08,0.00023835,4]
[366130861,1750078242590,-691.48,0.00023835,4]
[366130862,1750078242600,-879.77,0.00023835,4]
[366130863,1750078242610,-460.0,0.00023835,4]
[366130864,1750078242620,-2486.67,0.00023835,4]
[366130865,1750078242630,-460.0,0.00023835,4]
[366130866,1750078242640,-967.13,0.00023835,4]
[366130867,1750078242650,-683.53,0.00023835,4]
[366130868,1750078242660,-620.94,0.00023835,4]
[366130869,1750078242670,-581.18,0.00023835,4]
[366130870,1750078242680,-5000.0,0.00023856,2]
[366130871,1750078242690,-5000.0,0.00023856,2]
[366130872,1750078242700,-5000.0,0.00023856,2]
[366130873,1750078242710,-5000.0,0.00023856,2]
[366130874,1750078242720,-5000.0,0.00023856,2]
[366130875,1750078242730,-160.0,0.00023871,4]
[366130876,1750078242740,-500.0,0.00023897,2]
[366130877,1750078242750,-369.6989247,0.000239,2]
[366130878,1750078242760,-216.0,0.00023905,2]
[366130879,1750078242770,-216.0,0.0002394,2]
[366130880,1750078242781,-500.0,0.00023943,2]
[366130882,1750078242790,-500.0,0.00023976,2]
[366130884,1750078242800,-26841.04358443,0.00024,2]
[366130885,1750078242810,-47912.98081136,0.00024,2]
[366130886,1750078242820,-141732.01231868,0.00024,10]
[366130888,1750078242830,-130965.36438282,0.00024,2]
[366130889,1750078242840,-48091.2906889,0.00024,7]
[366130890,1750078242858,-6764.55331908,0.00024,7]
[366130892,1750078242870,-433.26421748,0.00024,7]
[366130983,1750078243764,-192.05,0.00022729,3]
[366130985,1750078243776,-169.12928475,0.00024,7]
[366130992,1750078243822,-585.13435132,0.00024,7]
[366131850,1750078264534,3882.58,0.000246,120]
[366131875,1750078540138,161.0,0.00016438,3]
[366131894,1750078853697,160.0,0.00016438,3]
[366131933,1750079058677,159.769475,0.00013699,2]
[366131949,1750079283776,1724.04292463,0.00025016,70]
[366131952,1750079300757,1569.4592273,0.00017231,2]
[366131953,1750079301312,-194.84232067,0.00018032,2]
[366131984,1750079431903,-300.0,0.00018229,2]
[366131985,1750079431915,-246.0,0.00018229,2]
[366131986,1750079431927,-713.11968012,0.0001823,2]
[366131987,1750079431941,-441.6643337,0.0001823,2]
[366131988,1750079431955,-18328.82956409,0.0001823,2]
[366131989,1750079431968,-300.0,0.00018231,2]
[366131990,1750079431980,-6889.68695191,0.00018232,2]